bitfinex/quotes_BTCUSD_20260221
["timestamp","ask_amount","ask_price","bid_price","bid_amount"]
[1771666840544,0.43940161,68300.0,68265.0,0.02491]
[1771666840765,0.29288401,68287.0,68276.0,0.02491]
[1771666840975,0.07322579,68282.0,68276.0,0.02491]
[1771666841580,0.07322491,68283.0,68276.0,0.02491]
[1771666842999,0.07322577,68282.0,68274.0,0.07323406]
[1771666846532,0.07322577,68282.0,68273.0,0.07323517]
[1771666846862,0.07322683,68281.0,68274.0,0.07323419]
[1771666847076,0.07322577,68282.0,68274.0,0.07323419]
[1771666847311,0.07322683,68281.0,68273.0,0.07323521]
[1771666848352,0.0002,68282.0,68270.0,0.00016]
[1771666848616,0.07323254,68276.0,68268.0,0.07324069]
[1771666851915,0.07323335,68275.0,68267.0,0.09815153]
[1771666852118,0.07323443,68274.0,68267.0,0.02491]
[1771666852707,0.07323443,68274.0,68267.0,0.09815153]
[1771666852904,0.29291753,68279.0,68268.0,0.07324051]
[1771666853318,0.07323353,68275.0,68268.0,0.07324051]
[1771666854647,0.07323353,68275.0,68267.0,0.09815146]
[1771666855195,0.0002,68274.0,68267.0,0.09815146]
[1771666855844,0.0002,68274.0,68268.0,0.07324053]
[1771666856415,0.0002,68274.0,68267.0,0.09815164]
[1771666856616,0.07343459,68274.0,68267.0,0.09815164]
[1771666858039,0.07343459,68274.0,68267.0,0.02491]
[1771666859879,0.07323548,68273.0,68267.0,0.02491]
[1771666860498,0.07343449,68274.0,68267.0,0.02491]
[1771666861457,0.07323823,68271.0,68265.0,0.00022]
[1771666861668,0.07323694,68272.0,68265.0,0.00022]
[1771666861790,0.07343511,68274.0,68265.0,0.00022]
[1771666861993,0.07323611,68273.0,68265.0,0.0734637]
[1771666862639,0.0002,68274.0,68267.0,0.07324114]
[1771666862803,0.0002,68274.0,68267.0,0.09815114]
[1771666864058,0.07343522,68274.0,68267.0,0.02491]
[1771666867912,0.07323567,68273.0,68267.0,0.02513]
[1771666868991,0.07343446,68274.0,68267.0,0.02513]
[1771666870595,0.07343446,68274.0,68267.0,0.09837176]
[1771666873463,0.07343446,68274.0,68267.0,0.02513]
[1771666873642,0.07323587,68273.0,68267.0,0.02513]
[1771666874352,0.07323727,68272.0,68265.0,0.20977839]
[1771666875237,0.07323727,68272.0,68265.0,0.28302229]
[1771666875560,0.07323727,68272.0,68267.0,0.00022]
[1771666879555,0.02300514,68272.0,68263.0,0.00011699]
[1771666879756,0.29295141,68271.0,68260.0,0.00038]
[1771666879956,0.07324082,68268.0,68260.0,0.00038]
[1771666880380,0.07324266,68267.0,68260.0,0.00038]
[1771666880597,0.09624513,68269.0,68261.0,0.07324722]
[1771666880803,0.09624513,68269.0,68260.0,0.00038]
[1771666880804,0.07324094,68268.0,68260.0,0.07362865]
[1771666881103,0.07324187,68267.0,68260.0,0.07362865]
[1771666881313,0.07324094,68268.0,68261.0,0.07324801]
[1771666881721,0.07324094,68268.0,68267.0,0.00022]
[1771666884525,0.07324094,68268.0,68260.0,0.07362924]
[1771666885454,0.07324195,68267.0,68260.0,0.07362924]
[1771666885956,0.07324094,68268.0,68260.0,0.07362924]
[1771666886736,0.07324199,68267.0,68260.0,0.07362924]
[1771666889808,0.07344111,68268.0,68260.0,0.07362924]
[1771666891595,0.07324183,68267.0,68260.0,0.07362924]
[1771666892048,0.07324183,68267.0,68260.0,0.00038]
[1771666892236,0.07286971,68267.0,68260.0,0.00038]
[1771666892386,0.07286971,68267.0,68260.0,0.07362911]
[1771666893257,0.07344095,68268.0,68260.0,0.07362911]
[1771666893479,0.0002,68268.0,68261.0,0.07324744]
[1771666894652,0.0002,68268.0,68261.0,0.07346744]
[1771666896767,0.0002,68268.0,68262.0,0.02370199]
[1771666897351,0.0002,68268.0,68262.0,0.09694897]
[1771666900111,0.0002,68268.0,68263.0,0.07324606]
[1771666900612,0.0002,68268.0,68262.0,0.09694913]
[1771666902112,0.0002,68268.0,68262.0,0.09716913]
[1771666903268,0.07335459,68271.0,68264.0,0.1954991]
[1771666903630,0.07335459,68271.0,68265.0,0.02266196]
[1771666903803,0.07323933,68270.0,68262.0,0.073467]
[1771666906642,0.0732399,68269.0,68262.0,0.073467]
[1771666908227,0.07335459,68271.0,68261.0,0.00022]
[1771666908228,0.00011678,68271.0,68261.0,0.00022]
[1771666908752,0.00011678,68271.0,68261.0,0.07346801]
[1771666908753,0.073355,68271.0,68261.0,0.07346801]
[1771666909331,0.073355,68271.0,68262.0,0.07346628]
[1771666909698,0.07343895,68270.0,68262.0,0.07346628]
[1771666912262,0.07323973,68269.0,68262.0,0.05789903]
[1771666912618,0.07323973,68269.0,68261.0,0.07346801]
[1771666913721,0.07323973,68269.0,68262.0,0.0732471]
[1771666916571,0.07343895,68270.0,68262.0,0.0732471]
[1771666917190,0.07343895,68270.0,68262.0,0.0734671]
[1771666917416,0.0002,68269.0,68262.0,0.0734671]
[1771666918169,0.07343988,68269.0,68262.0,0.0734671]
[1771666918581,0.0002,68269.0,68262.0,0.00022]
[1771666918799,0.07324155,68268.0,68262.0,0.00022]
[1771666921225,0.0002,68269.0,68262.0,0.00022]
[1771666922492,0.0002,68269.0,68264.0,0.07324417]
[1771666924145,0.07323508,68274.0,68264.0,0.07324417]
[1771666924146,0.24915315,68276.0,68268.0,0.07323974]
[1771666924351,0.0002,68269.0,68267.0,0.07324098]
[1771666924526,0.07323361,68275.0,68267.0,0.07324098]
[1771666924960,0.07323361,68275.0,68268.0,0.07324053]
[1771666927838,0.24923275,68276.0,68268.0,0.07324053]
[1771666929481,0.0732335,68275.0,68268.0,0.07324053]
[1771666929892,0.07323324,68275.0,68267.0,0.07323985]
[1771666930095,0.07323324,68275.0,68268.0,0.07324049]
[1771666930661,0.07343324,68275.0,68268.0,0.07324049]
[1771666931217,0.0002,68275.0,68268.0,0.07324049]
[1771666931348,0.07343396,68275.0,68267.0,0.07324145]
[1771666933375,0.07343396,68275.0,68268.0,0.0732407]
[1771666933569,0.0002,68275.0,68268.0,0.0732407]
[1771666935514,0.07343351,68275.0,68268.0,0.0732407]
[1771666937393,0.0002,68275.0,68269.0,0.07323953]
[1771666937716,0.0002,68275.0,68268.0,0.27352008]
[1771666937903,0.0002,68275.0,68268.0,0.09619762]
[1771666938106,0.07343347,68275.0,68268.0,0.07324063]
[1771666941129,0.07343347,68275.0,68267.0,0.07323974]
[1771666941736,0.0732344,68274.0,68267.0,0.07323974]
[1771666942139,0.0732344,68274.0,68264.0,0.27352362]
[1771666942343,0.07323539,68273.0,68265.0,0.0732439]
[1771666943367,0.07323539,68273.0,68268.0,0.00022]
[1771666945974,0.07323471,68274.0,68268.0,0.00022]
[1771666946652,0.07323547,68273.0,68268.0,0.00022]
[1771666946829,0.07323547,68273.0,68268.0,0.02317699]
[1771666947214,0.07323547,68273.0,68268.0,0.00022]
[1771666956571,0.07343547,68273.0,68268.0,0.00022]
[1771666959467,0.07323654,68272.0,68268.0,0.00022]
[1771666961837,0.07323654,68272.0,68264.0,0.27308193]
[1771666963302,0.07323654,68272.0,68264.0,0.27290193]
[1771666964003,0.07323654,68272.0,68265.0,0.00022]
[1771666964615,0.07323654,68272.0,68265.0,0.19533383]
[1771666969970,0.07323654,68272.0,68265.0,0.19504014]
[1771666970176,0.07323654,68272.0,68265.0,0.19489432]
[1771666971151,0.07323757,68271.0,68265.0,0.19489432]
[1771666977343,0.07323757,68271.0,68265.0,0.19511432]
[1771666980729,0.07323876,68270.0,68265.0,0.19511432]
[1771666980936,0.07323979,68269.0,68265.0,0.02401203]
[1771666981538,0.07323979,68269.0,68265.0,0.19511432]
[1771666981756,0.07323925,68270.0,68265.0,0.17132229]
[1771666982078,0.07323925,68270.0,68266.0,0.02401154]
[1771666982443,0.07324164,68268.0,68266.0,0.02401154]
[1771666982636,0.07324284,68267.0,68261.0,0.00022]
[1771666983075,0.073243,68266.0,68261.0,0.00022]
[1771666983285,0.073243,68266.0,68261.0,0.19533383]
[1771666983890,0.073243,68266.0,68265.0,0.00022]
[1771666987619,0.07324284,68267.0,68265.0,0.00022]
[1771666996879,0.07344284,68267.0,68265.0,0.00022]
[1771666997900,0.0732429,68266.0,68265.0,0.00022]
[1771666998922,0.07344212,68267.0,68265.0,0.00022]
[1771666999605,0.0732429,68266.0,68265.0,0.00022]
[1771666999908,0.03988352,68266.0,68265.0,0.00022]
[1771667000112,0.0002,68267.0,68254.0,0.0001519]
[1771667000314,0.0002,68267.0,68240.0,0.000284]
[1771667000315,0.02482392,68258.0,68248.0,4e-05]
[1771667000613,0.07325557,68256.0,68248.0,4e-05]
[1771667000816,0.07325708,68253.0,68248.0,4e-05]
[1771667003781,0.07325582,68254.0,68248.0,4e-05]
[1771667004453,0.02482392,68258.0,68248.0,4e-05]
[1771667004718,0.17592,68261.0,68250.0,0.18652523]
[1771667004919,0.24916856,68261.0,68251.0,0.02403408]
[1771667005120,0.07325008,68260.0,68252.0,0.07325792]
[1771667005251,0.24916856,68261.0,68252.0,0.07325792]
[1771667005668,0.001,68258.0,68252.0,0.07325792]
[1771667006076,0.07324936,68260.0,68252.0,0.07325792]
[1771667007758,0.07324936,68260.0,68253.0,0.07325682]
[1771667007958,0.24917037,68261.0,68252.0,0.0732577]
[1771667008159,0.07325045,68259.0,68251.0,0.09729102]
[1771667008804,0.17592,68261.0,68250.0,0.00016]
[1771667008968,0.20074392,68261.0,68250.0,0.00016]
[1771667009149,0.07325398,68256.0,68250.0,0.00016]
[1771667009837,0.02482392,68259.0,68250.0,0.00016]
[1771667011115,0.07325349,68257.0,68250.0,0.00016]
[1771667011588,0.07325375,68256.0,68250.0,0.00016]
[1771667014727,0.04942177,68256.0,68250.0,0.00016]
[1771667021440,0.07325329,68257.0,68250.0,0.00016]
[1771667021910,0.07325329,68257.0,68250.0,0.00027678]
[1771667022126,0.07325374,68256.0,68250.0,0.00027678]
[1771667023213,0.07325472,68255.0,68250.0,0.00027678]
[1771667023667,0.07325472,68255.0,68250.0,0.00049678]
[1771667024326,0.07325751,68253.0,68247.0,0.000344]
[1771667024532,0.00011682,68253.0,68247.0,0.000344]
[1771667024741,0.07325785,68253.0,68247.0,0.000344]
[1771667024917,0.07325648,68254.0,68247.0,0.000344]
[1771667025119,0.07325648,68254.0,68247.0,0.00073424]
[1771667026063,0.07325673,68255.0,68247.0,0.09653743]
[1771667026272,0.07325673,68255.0,68248.0,0.02254011]
[1771667028850,0.07325673,68255.0,68248.0,0.09580197]
[1771667029055,0.07325565,68256.0,68249.0,0.07326094]
[1771667029251,0.07345459,68257.0,68248.0,0.02254011]
[1771667029671,0.07325363,68256.0,68248.0,0.09580191]
[1771667030477,0.07325363,68256.0,68248.0,0.0732618]
[1771667030677,0.0732548,68255.0,68249.0,0.02254011]
[1771667032879,0.07325397,68256.0,68249.0,0.02254011]
[1771667033107,0.07325474,68255.0,68249.0,0.02254011]
[1771667040008,0.07325474,68255.0,68248.0,0.07348182]
[1771667040208,0.07325704,68253.0,68248.0,0.00022]
[1771667040410,0.03989169,68253.0,68248.0,0.00022]
[1771667041041,0.07325613,68254.0,68248.0,0.00022]
[1771667042323,0.0734532,68257.0,68248.0,0.00022]
[1771667042546,0.07325372,68256.0,68249.0,0.07326104]
[1771667043067,0.07345288,68257.0,68249.0,0.07326104]
[1771667043473,0.0002,68257.0,68252.0,0.07325688]
[1771667043853,0.0002,68257.0,68252.0,0.02254011]
[1771667046142,0.07325439,68256.0,68248.0,0.09602161]
[1771667046332,0.07325495,68255.0,68248.0,0.02276011]
[1771667046661,0.07325495,68255.0,68248.0,0.09602215]
[1771667050986,0.0732538,68256.0,68248.0,0.09602215]
[1771667051184,0.0002,68257.0,68251.0,0.07325889]
[1771667051507,0.0002,68257.0,68249.0,0.07326044]
[1771667051706,0.07345269,68257.0,68249.0,0.07326044]
[1771667051864,0.0002,68257.0,68250.0,0.02394278]
[1771667052085,0.0002,68257.0,68251.0,0.07325884]
[1771667052278,0.0002,68257.0,68251.0,0.09720162]
[1771667052478,0.0002,68257.0,68251.0,0.07325884]
[1771667052708,0.0002,68257.0,68252.0,0.02394278]
[1771667053907,0.07341142,68260.0,68252.0,0.02394278]
[1771667054091,0.07341016,68260.0,68254.0,0.02394278]
[1771667054288,0.29298303,68264.0,68254.0,0.02394278]
[1771667054551,0.17596,68265.0,68254.0,0.02394278]
[1771667055136,0.07325124,68259.0,68254.0,0.02394278]
[1771667056129,0.0002,68257.0,68254.0,0.02394278]
[1771667059212,0.0002,68257.0,68250.0,0.00016]
[1771667059410,0.07325363,68256.0,68250.0,0.00016]
[1771667059815,0.09599956,68255.0,68247.0,0.07399747]
[1771667060219,0.07325606,68254.0,68247.0,0.07399747]
[1771667060888,0.0002,68257.0,68247.0,0.00073424]
[1771667061087,0.07325795,68252.0,68247.0,0.00073424]
[1771667061312,0.09600236,68252.0,68247.0,0.00073424]
[1771667061504,0.02274441,68252.0,68247.0,0.00073424]
[1771667062698,0.02274441,68252.0,68250.0,0.00022]
[1771667067283,0.073256,68254.0,68250.0,0.00022]
[1771667067511,0.09600041,68254.0,68250.0,0.00022]
[1771667067663,0.07325687,68253.0,68250.0,0.00022]
[1771667068285,0.09600128,68253.0,68250.0,0.00022]
[1771667070919,0.09600128,68253.0,68247.0,0.00073424]
[1771667076389,0.07325687,68253.0,68247.0,0.00073424]
[1771667078313,0.07325965,68251.0,68243.0,0.00022]
[1771667078502,0.07364933,68251.0,68243.0,0.00022]
[1771667079512,0.07364933,68251.0,68244.0,0.07326644]
[1771667082666,0.0732659,68245.0,68241.0,0.00022]
[1771667082803,0.07326866,68242.0,68241.0,0.00022]
[1771667083205,0.07326866,68242.0,68236.0,0.00022]
[1771667083206,0.07326973,68241.0,68236.0,0.00022]
[1771667083441,0.07326973,68241.0,68237.0,0.00022]
[1771667084867,0.07326436,68246.0,68237.0,0.00022]
[1771667085174,0.07327401,68238.0,68234.0,0.00022]
[1771667085346,0.07327288,68239.0,68234.0,0.00022]
[1771667085545,0.09659617,68239.0,68234.0,0.00022]
[1771667085751,0.07327311,68238.0,68234.0,0.00022]
[1771667086862,0.07327311,68238.0,68233.0,0.000344]
[1771667087047,0.0965964,68238.0,68233.0,0.000344]
[1771667087560,0.02332329,68238.0,68233.0,0.000344]
[1771667089651,0.02332329,68242.0,68233.0,0.000344]
[1771667089857,0.07326688,68244.0,68236.0,0.07327426]
[1771667091304,0.07326768,68243.0,68236.0,0.07327426]
[1771667091466,0.07326768,68243.0,68234.0,0.07349699]
[1771667091665,0.07326768,68243.0,68235.0,0.07327579]
[1771667091666,0.02332329,68242.0,68235.0,0.07327579]
[1771667092515,0.07326768,68243.0,68234.0,0.07349518]
[1771667092728,0.07326768,68243.0,68235.0,0.07327617]
[1771667093924,0.07326768,68243.0,68236.0,0.07327484]
[1771667094123,0.07326689,68244.0,68236.0,0.07327484]
[1771667095057,0.0732677,68243.0,68236.0,0.07327484]
[1771667095264,0.46901089,68248.0,68235.0,0.02312777]
[1771667095265,0.17596,68248.0,68235.0,0.02312777]
[1771667095551,0.24922254,68248.0,68240.0,0.07327024]
[1771667095711,0.24922254,68248.0,68241.0,0.07326971]
[1771667096344,0.24922254,68248.0,68240.0,0.0732705]
[1771667097932,0.24922254,68248.0,68239.0,0.07327188]
[1771667098131,0.17596,68248.0,68238.0,0.02312777]
[1771667098558,0.17596,68248.0,68239.0,0.29308753]
[1771667098965,0.17596,68248.0,68243.0,0.07326745]
[1771667099988,0.00016,68250.0,68243.0,0.07326745]
[1771667100184,0.00016,68250.0,68244.0,0.02312777]
[1771667100488,0.00016,68250.0,68244.0,0.09639356]
[1771667100687,0.00016,68250.0,68245.0,0.07326532]
[1771667101139,0.00016,68250.0,68244.0,0.02312777]
[1771667101704,0.0732631,68248.0,68240.0,0.07327067]
[1771667102787,0.0732631,68248.0,68239.0,0.07326986]
[1771667103166,0.0732631,68248.0,68239.0,0.09639763]
[1771667103945,0.0732631,68248.0,68240.0,0.02312777]
[1771667104153,0.16544806,68250.0,68240.0,0.02312777]
[1771667104154,0.07326477,68246.0,68240.0,0.02312777]
[1771667104323,0.07362075,68250.0,68241.0,0.07326967]
[1771667104485,0.2387086,68250.0,68241.0,0.07326768]
[1771667105334,0.2387086,68250.0,68242.0,0.07326788]
[1771667105895,0.07326137,68249.0,68242.0,0.07326788]
[1771667106097,0.16544806,68250.0,68240.0,0.02312777]
[1771667106300,0.07326622,68245.0,68240.0,0.02312777]
[1771667106918,0.07326622,68246.0,68238.0,0.07327257]
[1771667108173,0.16544806,68250.0,68235.0,0.13226948]
[1771667108174,0.07362096,68250.0,68235.0,0.13226948]
[1771667108342,0.07326115,68249.0,68241.0,0.07326881]
[1771667109890,0.23870848,68250.0,68242.0,0.07326845]
[1771667110061,0.00036,68250.0,68245.0,0.07326537]
[1771667110268,0.00036,68250.0,68246.0,0.07326428]
[1771667110762,0.00036,68250.0,68245.0,0.0967883]
[1771667112738,0.07325793,68252.0,68245.0,0.0967883]
[1771667113197,0.07325793,68252.0,68245.0,0.02352293]
[1771667113822,0.07309748,68252.0,68245.0,0.02352293]
[1771667113999,0.073259,68251.0,68245.0,0.02352293]
[1771667114223,0.07326008,68250.0,68243.0,0.07326709]
[1771667115354,0.0732612,68249.0,68240.0,0.09695169]
[1771667115562,0.0732612,68249.0,68242.0,0.07326854]
[1771667116093,0.07310071,68249.0,68242.0,0.07326854]
[1771667118040,0.07326222,68248.0,68241.0,0.07348972]
[1771667118234,0.0002,68250.0,68241.0,0.00022]
[1771667118235,0.07326353,68247.0,68241.0,0.00022]
[1771667118544,0.07326611,68245.0,68241.0,0.00022]
[1771667118908,0.07326469,68246.0,68241.0,0.00022]
[1771667119306,0.07326356,68247.0,68241.0,0.00022]
[1771667119601,0.07326192,68249.0,68241.0,0.07348895]
[1771667120180,0.07308248,68248.0,68241.0,0.07348895]
[1771667121118,0.07308248,68248.0,68241.0,0.00022]
[1771667122136,0.07326329,68247.0,68241.0,0.00022]
[1771667122553,0.07326442,68246.0,68241.0,0.00022]
[1771667122719,0.07326354,68247.0,68241.0,0.00022]
[1771667124092,0.07346067,68250.0,68241.0,0.07348969]
[1771667124250,0.07346067,68250.0,68242.0,0.07326794]
[1771667124451,0.07346067,68250.0,68243.0,0.07326713]
[1771667125390,0.06412967,68250.0,68243.0,0.07326713]
[1771667125776,0.07325939,68251.0,68243.0,0.07326713]
[1771667127816,0.06392839,68251.0,68243.0,0.07326713]
[1771667128556,0.06392839,68251.0,68244.0,0.07326621]
[1771667129882,0.06412839,68251.0,68244.0,0.07326621]
[1771667130524,0.0002,68251.0,68243.0,0.07326757]
[1771667131583,0.0732603,68250.0,68243.0,0.07326757]
[1771667132684,0.07345928,68251.0,68243.0,0.07326757]
[1771667132867,0.07345928,68251.0,68243.0,0.07338439]
[1771667133238,0.07326037,68250.0,68243.0,0.07338439]
[1771667135901,0.07326114,68249.0,68243.0,0.00011682]
[1771667142072,0.07326114,68249.0,68241.0,0.07308866]
[1771667142920,0.0002,68250.0,68241.0,0.02347649]
[1771667143129,0.0002,68250.0,68244.0,0.07326604]
[1771667143338,0.07346014,68250.0,68243.0,0.07326727]
[1771667145758,0.07326121,68249.0,68242.0,0.07326862]
[1771667147584,0.07346048,68250.0,68242.0,0.07326862]
[1771667147794,0.07326143,68249.0,68242.0,0.07326862]
[1771667149325,0.0002,68250.0,68241.0,0.07348939]
[1771667149468,0.15447282,68249.0,68241.0,0.00022]
[1771667149823,0.07326222,68248.0,68241.0,0.00022]
[1771667150030,0.07326222,68248.0,68242.0,0.00022]
[1771667150408,0.07326123,68249.0,68242.0,0.07348837]
[1771667152531,0.07345943,68251.0,68242.0,0.07348837]
[1771667152765,0.07345943,68251.0,68243.0,0.02347649]
[1771667153767,0.07326191,68249.0,68243.0,0.02347649]
[1771667157496,0.07326191,68249.0,68242.0,0.00022]
[1771667157908,0.07346191,68249.0,68242.0,0.00022]
[1771667158259,0.07326222,68248.0,68242.0,0.00022]
[1771667158662,0.0732635,68247.0,68242.0,0.00022]
[1771667159114,0.07326258,68248.0,68242.0,0.00022]
[1771667160432,0.07346191,68249.0,68242.0,0.00022]
[1771667160620,0.07326411,68247.0,68242.0,0.00022]
[1771667162368,0.07326411,68247.0,68242.0,0.00060968]
[1771667164820,0.0732626,68248.0,68242.0,0.00060968]
[1771667171665,0.0732626,68248.0,68239.0,0.07326977]
[1771667171871,0.14277764,68246.0,68240.0,0.07327058]
[1771667172313,0.07365235,68248.0,68240.0,0.07327058]
[1771667173090,0.09767307,68248.0,68240.0,0.07327058]
[1771667174641,0.09767307,68248.0,68241.0,0.07326936]
[1771667178206,0.09767307,68248.0,68241.0,0.07348936]
[1771667179709,0.02441047,68248.0,68241.0,0.07348936]
[1771667185199,0.02461047,68248.0,68241.0,0.07348936]
[1771667188047,0.02461047,68248.0,68242.0,0.07326863]
[1771667188433,0.00058975,68248.0,68242.0,0.07326863]
[1771667188983,0.00058975,68248.0,68241.0,0.07348951]
[1771667189586,0.00058975,68248.0,68242.0,0.07326846]
[1771667191719,0.00058975,68248.0,68241.0,0.07348944]
[1771667193751,0.00058975,68248.0,68242.0,0.07326863]
[1771667196222,0.07874824,68250.0,68243.0,0.07326718]
[1771667196430,0.0002,68256.0,68242.0,0.02487433]
[1771667196558,0.07325181,68258.0,68250.0,0.07325929]
[1771667198176,0.07325181,68258.0,68249.0,0.09813362]
[1771667198177,0.07325181,68258.0,68251.0,0.07325898]
[1771667199000,0.07325181,68258.0,68251.0,0.14698561]
[1771667201526,0.07325181,68258.0,68251.0,0.07372663]
[1771667201895,0.07325443,68256.0,68251.0,0.07372663]
[1771667204245,0.07345443,68256.0,68251.0,0.07372663]
[1771667207052,0.0002,68256.0,68251.0,0.07372663]
[1771667207882,0.000144,68257.0,68251.0,0.07325818]
[1771667208094,0.000144,68257.0,68252.0,0.07345675]
[1771667208663,0.000144,68257.0,68254.0,0.07338823]
[1771667209654,0.000144,68257.0,68254.0,0.07325527]
[1771667209836,0.00016,68260.0,68254.0,0.07325527]
[1771667209837,0.00016,68260.0,68254.0,0.07338823]
[1771667210664,0.07340938,68260.0,68254.0,0.07338823]
[1771667211069,0.0002,68256.0,68254.0,0.07338823]
[1771667213813,0.0002,68256.0,68254.0,0.06881945]
[1771667214018,0.40830477,68265.0,68246.0,0.29133437]
[1771667214019,0.00016,68270.0,68258.0,0.07325104]
[1771667214335,0.07324447,68265.0,68258.0,0.07097286]
[1771667215118,0.000144,68267.0,68252.0,0.07094004]
[1771667215285,0.000144,68267.0,68261.0,0.07094004]
[1771667216281,0.001144,68267.0,68261.0,0.07094004]
[1771667216622,0.000144,68267.0,68261.0,0.07094004]
[1771667217530,0.0002,68265.0,68261.0,0.07094004]
[1771667223501,0.000144,68267.0,68260.0,0.07324833]
[1771667223699,0.000144,68267.0,68263.0,0.07087931]
[1771667224003,0.07339945,68270.0,68263.0,0.07087931]
[1771667224371,0.0002,68265.0,68264.0,0.07087931]
[1771667225384,0.0002,68265.0,68261.0,0.14405489]
[1771667225814,0.0002,68265.0,68261.0,0.07324799]
[1771667226029,0.0002,68265.0,68262.0,0.0708069]
[1771667234328,0.0002,68265.0,68261.0,0.07324799]
[1771667238427,0.0002,68265.0,68261.0,0.07346799]
[1771667238836,0.0002,68265.0,68261.0,0.14392207]
[1771667240138,0.0002,68265.0,68261.0,0.07346809]
[1771667240346,0.0002,68267.0,68262.0,0.07045408]
[1771667240567,0.70284553,68293.0,68265.0,0.07324301]
[1771667240568,0.07323526,68274.0,68265.0,0.07324301]
[1771667240786,0.07335218,68274.0,68262.0,0.07045408]
[1771667241005,0.07335218,68274.0,68267.0,0.07038142]
[1771667241878,0.07323571,68273.0,68267.0,0.07038142]
[1771667242276,0.07323655,68272.0,68267.0,0.07038142]
[1771667242925,0.07323571,68273.0,68267.0,0.07038142]
[1771667248475,0.00031692,68274.0,68267.0,0.14362286]
[1771667248679,0.07355148,68274.0,68267.0,0.07038142]
[1771667249444,0.07355148,68274.0,68267.0,0.14362312]
[1771667259286,0.04972338,68274.0,68267.0,0.14362312]
[1771667259486,0.04992338,68274.0,68267.0,0.14362312]
[1771667260072,0.04992338,68274.0,68267.0,0.07038142]
[1771667260287,0.07323834,68271.0,68267.0,0.07038142]
[1771667260488,0.07323834,68271.0,68262.0,0.36120777]
[1771667260489,0.07323873,68270.0,68262.0,0.36120777]
[1771667260707,0.07323873,68270.0,68262.0,0.07324693]
[1771667260708,0.00016,68270.0,68262.0,0.07324693]
[1771667261070,0.10734605,68269.0,68261.0,0.07324724]
[1771667261346,0.07339936,68270.0,68261.0,0.07324724]
[1771667261714,0.07324059,68269.0,68261.0,0.07324724]
[1771667265235,0.07324059,68269.0,68262.0,0.07324708]
[1771667265434,0.07324059,68269.0,68259.0,0.00022]
[1771667265577,0.07324059,68269.0,68262.0,0.07324713]
[1771667265759,0.07339875,68270.0,68259.0,0.00022]
[1771667266006,0.07339875,68270.0,68261.0,0.07324735]
[1771667266612,0.07339875,68270.0,68261.0,0.07346735]
[1771667269008,0.00016,68270.0,68261.0,0.00022]
[1771667269207,0.00016,68270.0,68263.0,0.07324541]
[1771667269620,0.07339891,68270.0,68261.0,0.07346621]
[1771667270565,0.07339891,68270.0,68262.0,0.07324719]
[1771667272971,0.07339891,68270.0,68262.0,0.07346719]
[1771667280731,0.07359891,68270.0,68262.0,0.07346719]
[1771667288563,0.07363891,68270.0,68262.0,0.07346719]
[1771667292593,0.0732347,68274.0,68266.0,0.16186657]
[1771667292806,0.0732347,68274.0,68266.0,0.16181524]
[1771667292952,0.07323637,68273.0,68266.0,0.08857308]
[1771667293592,0.07323637,68273.0,68265.0,0.17219994]
[1771667294014,0.0002,68270.0,68265.0,0.17219994]
[1771667294397,0.0002,68270.0,68265.0,0.07324386]
[1771667294616,0.05905928,68273.0,68265.0,0.07324386]
[1771667295527,0.29293107,68276.0,68264.0,0.0732441]
[1771667295727,0.29293107,68276.0,68264.0,0.07336102]
[1771667296276,0.000124,68278.0,68264.0,0.00011692]
[1771667296448,0.0732385,68271.0,68264.0,0.00011692]
[1771667297871,0.0732311,68277.0,68264.0,0.00011692]
[1771667298072,0.07324084,68268.0,68262.0,0.00022]
[1771667298280,0.07324007,68269.0,68262.0,0.00022]
[1771667299308,0.07324007,68269.0,68262.0,0.07346714]
[1771667299861,0.00016,68270.0,68255.0,0.00022]
[1771667300081,0.00016,68270.0,68250.0,0.00016]
[1771667300082,0.29299218,68262.0,68252.0,4e-05]
[1771667300285,0.0732523,68258.0,68252.0,4e-05]
[1771667300488,0.07325262,68257.0,68252.0,4e-05]
[1771667300694,0.04942127,68257.0,68252.0,4e-05]
[1771667301501,0.07325142,68259.0,68252.0,4e-05]
[1771667302494,0.07325453,68256.0,68252.0,4e-05]
[1771667303660,0.0732555,68255.0,68252.0,4e-05]
[1771667303892,0.07325453,68256.0,68252.0,4e-05]
[1771667304629,0.07325187,68258.0,68252.0,4e-05]
[1771667304856,0.07325057,68259.0,68255.0,0.05551825]
[1771667305227,0.07325057,68259.0,68252.0,4e-05]
[1771667306782,0.10476477,68271.0,68260.0,0.05555683]
[1771667306783,0.07324266,68267.0,68260.0,0.05555683]
[1771667307411,0.07351563,68270.0,68262.0,0.07324634]
[1771667307605,0.07351563,68270.0,68263.0,0.05555683]
[1771667307759,0.07323972,68269.0,68263.0,0.05555683]
[1771667308174,0.07323968,68269.0,68263.0,0.05555683]
[1771667308375,0.07324092,68268.0,68263.0,0.05555683]
[1771667309396,0.07324092,68268.0,68263.0,0.09895608]
[1771667309592,0.07324092,68268.0,68264.0,0.08066209]
[1771667309911,0.07324005,68269.0,68265.0,0.08066209]
[1771667310110,0.0732409,68268.0,68265.0,0.08066209]
[1771667313657,0.07351563,68270.0,68265.0,0.08066209]
[1771667314040,0.07324148,68268.0,68261.0,0.08201397]
[1771667314419,0.07344148,68268.0,68261.0,0.08201397]
[1771667316430,0.0732436,68266.0,68261.0,0.08201397]
[1771667320916,0.0734436,68266.0,68261.0,0.08201397]
[1771667327639,0.0002,68266.0,68256.0,0.09344212]
[1771667327841,0.07325067,68259.0,68250.0,0.08173332]
[1771667328014,0.07324688,68263.0,68255.0,0.09344212]
[1771667328219,0.07324688,68263.0,68256.0,0.08157332]
[1771667329414,0.0732472,68262.0,68256.0,0.08157332]
[1771667329638,0.07324688,68263.0,68256.0,0.08157332]
[1771667329837,0.07324708,68264.0,68256.0,0.08157332]
[1771667331538,0.07324742,68262.0,68256.0,0.08157332]
[1771667332692,0.07324708,68264.0,68256.0,0.08157332]
[1771667333297,0.07344363,68266.0,68256.0,0.08154303]
[1771667333667,0.07324589,68264.0,68257.0,0.08154303]
[1771667334056,0.0002,68266.0,68258.0,0.0732508]
[1771667334251,0.0002,68268.0,68259.0,0.08154303]
[1771667334597,0.07324482,68265.0,68259.0,0.08154303]
[1771667335310,0.07324482,68265.0,68257.0,0.07325246]
[1771667338064,0.07324482,68265.0,68258.0,0.07325144]
[1771667343899,0.29296854,68267.0,68256.0,0.00022]
[1771667344138,0.38506154,68267.0,68256.0,0.00022]
[1771667344338,0.07324674,68263.0,68256.0,0.00022]
[1771667345093,0.07324674,68263.0,68256.0,7.423e-05]
[1771667346690,0.07324674,68263.0,68256.0,0.07332769]
[1771667348153,0.04941829,68261.0,68253.0,0.07325685]
[1771667349071,0.04941829,68261.0,68254.0,0.0732557]
[1771667350986,0.07324752,68262.0,68254.0,0.0732557]